bitfinex-derivatives/quotes_SOLF0:USTF0_20250221
["timestamp","ask_amount","ask_price","bid_price","bid_amount"]
[1740171490822,0.03763907,169.11,169.09,5.9171]
[1740171492623,0.03763907,169.11,169.1,5.917]
[1740171493022,1.00565291,169.17,169.08,0.0453346]
[1740171493023,1.00565291,169.17,169.08,15.16741642]
[1740171493229,10.21840465,169.21,169.14,15.12208182]
[1740171493430,1.00642135,169.2,169.14,15.12208182]
[1740171493632,10.21840465,169.21,169.14,5.9154]
[1740171493819,10.21840465,169.21,169.08,15.12208182]
[1740171494023,1.00636147,169.2,169.08,15.12208182]
[1740171494222,0.03904394,169.16,169.13,0.03782137]
[1740171494429,1.00641365,169.23,169.08,15.12208182]
[1740171494625,1.00641365,169.23,169.13,0.04478946]
[1740171494626,0.0445067,169.16,169.13,0.04478946]
[1740171494832,5.9148,169.17,169.13,5.96058946]
[1740171495028,0.04380551,169.16,169.13,0.04478946]
[1740171495233,1.00612674,169.21,169.06,1.7245]
[1740171495431,5.95665679,169.16,169.13,0.03829614]
[1740171495832,0.04155679,169.16,169.13,0.03829614]
[1740171496233,0.04155679,169.16,169.14,9.02]
[1740171496831,0.04155679,169.16,169.15,5.9153]
[1740171498632,0.04155679,169.16,169.14,9.02]
[1740171499429,0.04155679,169.16,169.15,5.9153]
[1740171506244,5.679e-05,169.16,169.15,5.9153]
[1740171506448,1.00842781,169.23,169.14,9.02]
[1740171506749,5.9128,169.22,169.14,9.02]
[1740171506945,5.3882,169.24,169.14,9.02]
[1740171507250,1.00838768,169.23,169.14,9.02]
[1740171507450,0.04373534,169.21,169.17,0.03784759]
[1740171507948,0.04373534,169.21,169.18,5.914]
[1740171508150,5.95703534,169.21,169.18,5.914]
[1740171508341,0.04373534,169.21,169.17,0.03784759]
[1740171509348,5.9142,169.18,169.17,0.03784759]
[1740171509849,5.9153,169.15,169.14,9.02]
[1740171510749,194.0,169.23,169.14,9.02]
[1740171511045,0.04505263,169.2,169.17,0.0401738]
[1740171511544,0.04505263,169.2,169.19,5.9139]
[1740171512850,0.04505263,169.2,169.17,0.0401738]
[1740171513452,5.95875263,169.2,169.17,0.0401738]
[1740171513952,0.04505263,169.2,169.17,0.0401738]
[1740171514148,5.914,169.19,169.17,0.0401738]
[1740171514652,5.9142,169.18,169.17,0.0401738]
[1740171515046,0.04505263,169.2,169.14,9.02]
[1740171515247,5.9153,169.15,169.14,9.02]
[1740171515853,5.9153,169.15,169.14,0.5864]
[1740171516151,0.04410087,169.16,169.13,0.0442416]
[1740171516752,0.04410087,169.16,169.11,0.66285948]
[1740171516951,0.04410087,169.16,169.07,51.15146013]
[1740171517353,5.916,169.14,169.07,51.15146013]
[1740171517951,0.04478678,169.12,169.1,5.9168]
[1740171519253,0.04478678,169.12,169.09,0.04484762]
[1740171519553,5.96148678,169.12,169.09,0.04484762]
[1740171521154,0.04478678,169.12,169.09,0.04484762]
[1740171521353,0.04478678,169.12,169.09,5.96214762]
[1740171521656,0.04478678,169.12,169.09,0.04484762]
[1740171523257,0.04478678,169.12,169.1,5.9168]
[1740171523457,0.04478678,169.12,169.09,0.04484762]
[1740171523958,0.04478678,169.12,169.11,5.9167]
[1740171525053,0.04478678,169.12,169.09,0.04484762]
[1740171525054,5.96138678,169.12,169.09,0.04484762]
[1740171525457,0.04478678,169.12,169.09,0.04484762]
[1740171527958,5.917,169.1,169.09,0.04484762]
[1740171528157,0.04478678,169.12,169.02,15.12208182]
[1740171528353,0.04478678,169.12,169.01,1.731]
[1740171528354,1.00715238,169.14,169.01,1.731]
[1740171528562,5.9177,169.09,169.01,1.731]
[1740171528755,5.9177,169.09,169.02,15.12208182]
[1740171528954,5.9164,169.12,169.08,5.9176]
[1740171529251,0.04313436,169.12,169.08,0.03750533]
[1740171531059,0.04313436,169.12,169.11,5.9167]
[1740171531559,0.00066381,169.12,169.11,5.9167]
[1740171534667,5.9145,169.18,169.15,5.9151]
[1740171534966,5.914,169.19,169.15,5.9151]
[1740171535161,3.3964,169.21,169.09,16.87648182]
[1740171535368,5.915,169.16,169.09,1.7544]
[1740171535767,0.03837974,169.14,169.11,0.03860006]
[1740171536366,0.03837974,169.14,169.13,5.9157]
[1740171540364,8.24,169.25,169.11,0.03860006]
[1740171540365,10.25132358,169.26,169.11,15.16068188]
[1740171540575,1.00947489,169.25,169.14,15.12208182]
[1740171540765,1.00947489,169.25,169.15,3.5086]
[1740171541363,5.9112,169.27,169.23,5.9123]
[1740171541570,0.03849472,169.22,169.18,15.12208182]
[1740171541766,1.00969051,169.29,169.21,0.04072639]
[1740171541969,0.03895591,169.22,169.21,5.95392639]
[1740171542164,1.00969051,169.29,169.21,0.04072639]
[1740171542471,1.00969051,169.29,169.22,5.9128]
[1740171542472,5.9113,169.27,169.22,5.9128]
[1740171542673,5.95514187,169.27,169.22,5.9128]
[1740171542868,0.04384187,169.27,169.21,0.04072639]
[1740171543571,5.9128,169.22,169.21,2.639e-05]
[1740171544273,6.92164957,169.22,169.21,2.639e-05]
[1740171546573,5.9128,169.22,169.21,2.639e-05]
[1740171546776,6.92125381,169.22,169.21,2.639e-05]
[1740171546977,6.92121582,169.22,169.21,2.639e-05]
[1740171548766,6.92168897,169.22,169.21,2.639e-05]
[1740171550870,1.00888897,169.22,169.13,2.639e-05]
[1740171551880,5.9149,169.17,169.13,2.639e-05]
[1740171552179,5.9149,169.17,169.16,8.925e-05]
[1740171552376,16.13036234,169.17,169.05,3.5458]
[1740171552576,2.75098052,169.16,169.05,3.5458]
[1740171552779,1.00828052,169.15,169.06,5.9183]
[1740171553180,15.12208182,169.14,169.03,6.61814859]
[1740171553376,15.12208182,169.11,169.03,0.69874859]
[1740171553582,2.91019997,169.1,169.07,0.04174883]
[1740171553778,1.0080129,169.09,169.0,8.1962739]
[1740171553977,1.0080129,169.09,168.99,5.2147]
[1740171554178,23.36208182,169.08,168.96,52.56182672]
[1740171554481,1.0080129,169.07,168.94,5.2331]
[1740171554982,5.95984686,169.02,168.99,0.04171736]
[1740171555182,0.03974686,169.02,168.99,0.04171736]
[1740171558586,1.00733537,169.07,168.99,0.04171736]
[1740171558779,8.24,169.08,168.99,0.04171736]
[1740171559887,0.03816843,169.05,168.99,0.04171736]
[1740171560785,0.03816843,169.05,169.04,5.9191]
[1740171561179,0.03816843,169.05,169.03,0.04310817]
[1740171561680,205.6914,169.17,169.08,5.9176]
[1740171561879,1.00820846,169.15,169.01,15.12208182]
[1740171562278,5.916,169.13,169.01,15.12208182]
[1740171562884,0.04379521,169.09,169.08,5.9177]
[1740171563087,0.04379521,169.09,169.05,0.03818354]
[1740171563280,0.04379521,169.09,169.07,0.04003373]
[1740171563784,0.04379521,169.09,169.06,0.04437667]
[1740171564081,0.04379521,169.09,169.07,5.9178]
[1740171564283,0.04379521,169.09,169.06,0.03806182]
[1740171564785,1.7001,169.17,169.06,0.03806182]
[1740171564983,1.00805014,169.16,169.05,15.12208182]
[1740171565286,20.30332069,169.21,169.08,15.12208182]
[1740171565480,1.00829452,169.2,169.09,1.7574]
[1740171565784,6.92209452,169.2,169.16,5.9148]
[1740171565985,1.00829452,169.19,169.13,0.04053917]
[1740171566287,5.914,169.19,169.13,0.04053917]
[1740171566487,0.04141087,169.2,169.13,0.04053917]
[1740171566786,5.9141,169.19,169.15,5.915]
[1740171566982,0.04141087,169.2,169.13,0.04053917]
[1740171568485,0.04141087,169.2,169.18,5.9141]
[1740171568790,0.04141087,169.2,169.12,15.12208182]
[1740171569088,0.04141087,169.2,169.17,0.03902149]
[1740171569485,0.04141087,169.2,169.1,1.7395]
[1740171569786,5.95531087,169.2,169.17,0.04267287]
[1740171569977,5.95531087,169.2,169.1,1.7395]
[1740171569978,0.04141087,169.2,169.11,1.7343]
[1740171570178,0.04141087,169.2,169.17,0.03766706]
[1740171571386,5.9142,169.18,169.17,0.03766706]
[1740171571985,6.92369461,169.18,169.17,0.03766706]
[1740171572487,0.04141087,169.2,169.17,0.03766706]
[1740171574787,0.04141087,169.2,169.17,5.95216706]
[1740171575389,0.04141087,169.2,169.17,0.03766706]
[1740171575590,0.04141087,169.2,169.17,5.95216706]
[1740171576290,0.04141087,169.2,169.17,0.03766706]
[1740171577881,0.04141087,169.2,169.18,5.9142]
[1740171578292,0.04141087,169.2,169.17,0.03766706]
[1740171578293,4.68,169.27,169.17,0.03766706]
[1740171578494,6.92167531,169.26,169.17,1.72226706]
[1740171578690,1.00997531,169.25,169.18,15.12208182]
[1740171579290,1.00997531,169.25,169.17,16.84434888]
[1740171579494,0.04067846,169.23,169.17,16.84434888]
[1740171580792,0.04067846,169.23,169.21,5.9129]
[1740171581588,0.04067846,169.23,169.17,16.84434888]
[1740171581791,0.04067846,169.23,169.22,5.9128]
[1740171582091,15.12208182,169.33,169.2,15.12208182]
[1740171582298,1.00951133,169.32,169.2,15.12208182]
[1740171582595,1.00951133,169.31,169.2,15.12208182]
[1740171582895,5.9105,169.29,169.26,5.9113]
[1740171583096,15.12208182,169.33,169.2,15.12208182]
[1740171583293,0.04025707,169.29,169.26,0.04192578]
[1740171583694,5.95095707,169.29,169.26,0.04192578]
[1740171584692,5.95095707,169.29,169.26,5.95332578]
[1740171585191,0.04025707,169.29,169.26,0.04192578]
[1740171585391,5.9108,169.28,169.26,0.04192578]
[1740171585598,0.04025707,169.29,169.26,0.04192578]
[1740171586089,1.00927011,169.35,169.26,0.04192578]
[1740171586287,1.00938588,169.34,169.26,15.1640076]
[1740171586497,10.23396775,169.39,169.29,15.12208182]
[1740171586795,1.0095111,169.38,169.29,15.12208182]
[1740171586986,5.9081,169.36,169.32,5.9091]
[1740171587186,1.05355808,169.35,169.32,0.04467144]
[1740171587387,1.00961704,169.42,169.32,15.12208182]
[1740171587695,327.19436124,169.43,169.33,1.8156]
[1740171588492,327.19436124,169.43,169.36,0.03908773]
[1740171588493,5.9072,169.39,169.36,0.03908773]
[1740171588693,0.03778941,169.4,169.36,0.03908773]
[1740171589298,5.9076,169.37,169.36,0.03908773]
[1740171589489,6.90947074,169.37,169.36,0.03908773]
[1740171590496,5.9073,169.38,169.36,0.03908773]
[1740171590699,0.03778941,169.4,169.36,0.03908773]
[1740171591095,5.9076,169.37,169.36,0.03908773]
[1740171591499,0.03778941,169.4,169.36,0.03908773]
[1740171592596,5.9075,169.38,169.36,0.03908773]
[1740171592797,0.03778941,169.4,169.36,0.03908773]
[1740171593300,5.9076,169.37,169.36,0.03908773]
[1740171595403,0.03778941,169.4,169.36,0.03908773]
[1740171596198,1.00173909,169.48,169.37,24.13203579]
[1740171596604,6.33893909,169.56,169.36,24.13203579]
[1740171596806,1.00221505,169.55,169.42,5.9056]
[1740171596996,1.00224039,169.54,169.42,5.9056]
[1740171597196,1.00224039,169.53,169.36,24.13203579]
[1740171597396,5.9044,169.47,169.46,0.04499521]
[1740171597696,0.03986254,169.48,169.46,0.04499521]
[1740171598208,0.04209255,169.49,169.46,0.04499521]
[1740171601003,5.9041,169.47,169.46,0.04499521]
[1740171601201,5.9041,169.47,169.46,9.521e-05]
[1740171602209,5.9073,169.38,169.34,3.578]
[1740171602506,29.53653579,169.48,169.34,3.578]
[1740171602808,1.00188472,169.47,169.34,3.578]
[1740171603102,1.00188472,169.47,169.34,27.71003579]
[1740171603502,0.04329284,169.42,169.39,0.04162299]
[1740171604205,218.13203579,169.52,169.39,0.04162299]
[1740171604406,4.58049991,169.51,169.36,24.13203579]
[1740171604602,1.00279991,169.5,169.36,24.13203579]
[1740171604803,1.00279991,169.5,169.34,3.578]
[1740171605506,5.9058,169.43,169.4,0.04221582]
[1740171605907,0.04099747,169.44,169.4,0.04221582]
[1740171606502,0.04099747,169.44,169.42,5.9056]
[1740171606710,0.04099747,169.44,169.4,0.04221582]
[1740171607110,0.04099747,169.44,169.41,5.9061]
[1740171607312,0.04099747,169.44,169.4,0.04221582]
[1740171607708,5.9058,169.43,169.4,0.04221582]
[1740171608011,0.04099747,169.44,169.4,0.04221582]
[1740171608211,0.04099747,169.44,169.42,5.9056]
[1740171608405,0.04099747,169.44,169.4,0.04221582]
[1740171608710,5.94639747,169.44,169.4,5.94851582]
[1740171608912,0.04099747,169.44,169.4,5.94851582]
[1740171609113,0.04099747,169.44,169.4,0.04221582]
[1740171609409,5.9058,169.43,169.4,0.04221582]
[1740171609602,0.04099747,169.44,169.4,0.04221582]
[1740171609808,5.9062,169.41,169.4,0.04221582]
[1740171610109,0.04099747,169.44,169.4,0.04221582]
[1740171610504,0.04099747,169.44,169.4,24.17425161]
[1740171610708,1.00199286,169.5,169.47,5.904]
[1740171611004,5.9028,169.51,169.41,3.5086]
[1740171611208,1.8144,169.54,169.41,3.5086]
[1740171611408,1.00224967,169.53,169.41,3.5086]
[1740171612006,0.04270713,169.49,169.45,0.04433248]
[1740171612516,194.0,169.63,169.45,0.04433248]
[1740171612814,6.32111223,169.62,169.48,24.13203579]
[1740171613115,1.00171223,169.61,169.48,24.13203579]
[1740171613511,5.8998,169.6,169.48,24.13203579]
[1740171613710,0.03737684,169.56,169.53,0.04033951]
[1740171616617,0.03737684,169.56,169.54,5.9014]
[1740171617408,0.03737684,169.56,169.55,5.9013]
[1740171617617,1.7625,169.66,169.54,24.13203579]
[1740171617816,1.00200279,169.65,169.55,1.8145]
[1740171618016,8.54,169.72,169.59,5.8998]
[1740171618219,1.00204678,169.71,169.55,1.8145]
[1740171618817,8.54,169.72,169.61,0.0412675]
[1740171619017,1.00204678,169.71,169.56,24.13203579]
[1740171619313,5.8976,169.66,169.65,0.04138853]
[1740171620821,5.8974,169.67,169.65,0.04138853]
[1740171621211,8.56,169.73,169.65,0.04138853]
[1740171621521,5.8971,169.68,169.65,0.04138853]
[1740171622219,3.4993,169.74,169.65,0.04138853]
[1740171622414,1.00215315,169.73,169.65,0.04138853]
[1740171622719,5.8962,169.7,169.65,0.04138853]
[1740171622916,3.4993,169.74,169.65,0.04138853]
[1740171623116,1.0019913,169.73,169.65,0.04138853]
[1740171623417,5.8958,169.71,169.65,0.04138853]
[1740171623618,3.4993,169.74,169.65,0.04138853]
[1740171623817,1.00198689,169.73,169.65,0.04138853]
[1740171625112,1.00198689,169.73,169.67,5.897]
[1740171625317,1.00198689,169.73,169.65,0.04138853]
[1740171625620,1.00198689,169.72,169.65,0.04138853]
[1740171625819,8.56,169.79,169.65,0.04138853]
[1740171626020,1.00197102,169.78,169.67,0.03844427]
[1740171626215,1.00197102,169.78,169.61,1.7465]
[1740171626420,1.00197102,169.78,169.71,0.04391318]
[1740171626621,1.00197102,169.81,169.71,0.04391318]
[1740171626822,14.0489,169.83,169.71,0.04391318]
[1740171626823,1.00197102,169.8,169.71,0.04391318]
[1740171627123,1.00197102,169.79,169.74,0.04213816]
[1740171627323,5.8927,169.8,169.75,5.8941]
[1740171627617,25.92393579,169.89,169.74,0.04213816]
[1740171627822,4.50866787,169.88,169.74,0.04213816]
[1740171628122,4.50866787,169.88,169.79,0.04252785]
[1740171628123,1.00136787,169.87,169.79,0.04252785]
[1740171628427,5.8916,169.84,169.79,5.93542785]
[1740171628722,32.69203579,169.94,169.79,0.04252785]
[1740171628918,5.8894,169.9,169.79,0.04252785]
[1740171629123,4.50847003,169.89,169.75,1.7121]
[1740171629316,1.00117003,169.88,169.83,6.43e-06]
[1740171629514,5.8913,169.84,169.83,6.43e-06]
[1740171629718,6.89247003,169.84,169.83,6.43e-06]
[1740171630116,5.8943,169.76,169.71,1.7151]
[1740171631325,24.13203579,169.82,169.64,126.28]
[1740171631630,8.54,169.84,169.72,0.04002266]
[1740171631631,0.03681797,169.75,169.72,0.04002266]
[1740171632127,5.8959,169.71,169.66,5.8974]
[1740171632630,0.03681797,169.7,169.69,0.0406364]
[1740171633027,1.00174503,169.8,169.71,5.8957]
[1740171633227,1.00174503,169.8,169.69,0.0406364]
[1740171633531,0.03681797,169.77,169.74,0.04177696]
[1740171634032,0.03681797,169.77,169.61,3.4953]
[1740171634530,1.00174503,169.78,169.61,3.4953]
[1740171635218,0.0378404,169.71,169.68,0.04365102]
[1740171635625,5.8971,169.69,169.68,0.04365102]
[1740171636929,5.8968,169.7,169.68,0.04365102]
[1740171637229,0.04343613,169.71,169.68,0.04365102]
[1740171637823,0.04343613,169.71,169.68,5.94105102]
[1740171638021,0.04343613,169.71,169.68,0.04365102]
[1740171638925,0.04343613,169.71,169.7,5.8967]
[1740171639427,4.66,169.78,169.68,48.3077226]
[1740171639631,4.66,169.78,169.72,24.13203579]
[1740171640028,4.66,169.78,169.75,5.8947]
[1740171640330,4.66,169.78,169.69,3.5292]
[1740171640526,5.8946,169.76,169.75,0.04213995]
[1740171641430,4.69515879,169.78,169.75,0.04213995]
[1740171641927,0.03515879,169.78,169.75,0.04213995]
[1740171642131,5.8946,169.76,169.75,0.04213995]
[1740171643532,6.89628785,169.76,169.75,0.04213995]
[1740171643734,0.03515879,169.78,169.75,0.04213995]
[1740171644422,0.03515879,169.78,169.75,5.93683995]
[1740171644624,0.03515879,169.78,169.75,0.04213995]
[1740171645333,5.8946,169.76,169.75,0.04213995]
[1740171646135,1.00171783,169.76,169.69,5.897]
[1740171646329,5.8958,169.73,169.69,5.897]
[1740171647433,5.93715525,169.73,169.69,0.04227533]
[1740171647633,0.04135525,169.73,169.7,5.8967]
[1740171648328,0.04135525,169.73,169.71,5.8963]
[1740171649535,0.04135525,169.73,169.72,5.896]
[1740171651131,0.04135525,169.73,169.7,5.8966]
[1740171651331,0.04135525,169.73,169.69,0.04227533]
[1740171651835,0.04135525,169.73,169.7,5.8965]
[1740171652128,0.04135525,169.73,169.69,0.04227533]
[1740171652332,0.04135525,169.73,169.72,5.896]
[1740171654238,3.6947,169.84,169.78,5.8939]
[1740171654430,3.6947,169.84,169.71,24.13203579]
[1740171654630,6.8936849,169.83,169.71,24.13203579]
[1740171654940,3.6947,169.84,169.79,5.8933]
[1740171655139,1.00129376,169.83,169.79,5.8933]
[1740171655339,6.92953726,169.83,169.8,0.04023833]
[1740171655538,0.0359435,169.83,169.8,0.04023833]
[1740171656039,0.0359435,169.83,169.8,5.93333833]
[1740171656340,0.0359435,169.83,169.8,0.04023833]
[1740171657539,5.8928,169.82,169.8,0.04023833]
[1740171658239,5.9282435,169.83,169.8,0.04023833]
[1740171658740,5.8926,169.82,169.8,0.04023833]
[1740171659041,0.0359435,169.83,169.8,0.04023833]
[1740171659239,5.8929,169.81,169.8,0.04023833]
[1740171659738,0.0359435,169.83,169.8,0.04023833]
[1740171659931,5.8929,169.81,169.8,0.04023833]
[1740171660332,6.89427414,169.81,169.8,0.04023833]
[1740171660737,5.8943,169.77,169.7,5.3485]
[1740171661139,5.8943,169.77,169.72,5.8957]
[1740171661343,3.5166,169.82,169.7,5.3485]
[1740171661344,5.8947,169.76,169.7,5.3485]
[1740171661736,5.8947,169.76,169.72,5.8959]
[1740171661933,0.04114762,169.75,169.72,5.8959]
[1740171662139,3.5166,169.82,169.72,5.8959]
[1740171662441,5.8957,169.73,169.72,0.04327737]
[1740171662641,8.6,169.81,169.72,0.04327737]
[1740171662836,1.00172935,169.8,169.72,0.04327737]
[1740171663035,0.03856135,169.78,169.72,0.04327737]
[1740171663542,5.8956,169.74,169.72,0.04327737]
[1740171663745,0.03856135,169.78,169.72,0.04327737]
[1740171664647,5.8957,169.73,169.72,0.04327737]
[1740171667045,0.0381354,169.74,169.72,0.04327737]
[1740171667853,5.9335354,169.74,169.72,0.04327737]
[1740171668048,0.0381354,169.74,169.72,0.04327737]
[1740171669854,0.0381354,169.74,169.73,5.8957]
[1740171670049,3.5166,169.82,169.72,0.04327737]
[1740171670050,1.7679,169.82,169.72,0.04327737]
[1740171670251,1.0013641,169.81,169.77,5.8941]
[1740171670554,1.0013641,169.81,169.72,3.6149]
[1740171670748,5.8926,169.82,169.77,5.894]
[1740171670943,1.00132024,169.81,169.72,3.6149]
[1740171671154,1.00132251,169.84,169.72,3.6149]
[1740171671355,0.0377788,169.78,169.77,5.894]
[1740171671555,1.00132251,169.84,169.77,5.894]
[1740171671758,0.03804643,169.79,169.76,0.03948372]
[1740171672049,0.03804643,169.79,169.76,5.93408372]
[1740171672248,0.03804643,169.79,169.76,0.03948372]
[1740171672450,5.8939,169.78,169.76,0.03948372]
[1740171672657,1.00132251,169.77,169.76,0.03948372]
[1740171672948,0.03804643,169.79,169.78,5.8939]
[1740171673346,0.03804643,169.79,169.76,0.03948372]
[1740171674147,0.03804643,169.79,169.77,5.8941]
[1740171674353,0.03804643,169.79,169.76,0.03948372]
[1740171675260,0.03804643,169.79,169.78,5.8939]
[1740171675556,0.03804643,169.79,169.76,0.03948372]
[1740171675762,0.03804643,169.79,169.77,5.8943]
[1740171675957,0.03804643,169.79,169.76,0.03948372]
[1740171676559,1.0012638,169.84,169.76,0.03948372]
[1740171676755,10.2703711,169.86,169.76,0.03948372]
[1740171676960,5.8922,169.83,169.79,5.8933]
[1740171677158,1.8168,169.88,169.75,24.13203579]
[1740171677462,5.8923,169.83,169.78,5.8937]
[1740171677659,1.8168,169.88,169.75,24.13203579]
[1740171677860,1.00115818,169.87,169.79,0.0379917]
[1740171678061,5.8928,169.82,169.79,0.0379917]
[1740171678360,1.00129372,169.81,169.79,0.0379917]
[1740171678556,1.8168,169.88,169.79,0.0379917]
[1740171678758,1.00133575,169.87,169.79,0.0379917]
[1740171678959,24.13203579,169.86,169.79,0.0379917]
[1740171679252,195.00133575,169.85,169.64,24.13203579]
[1740171679458,204.5141843,169.84,169.65,1.848]
[1740171679653,5.895,169.75,169.7,5.8966]
[1740171679861,8.62,169.8,169.65,1.848]
[1740171680163,5.8956,169.74,169.68,5.8972]
[1740171680461,5.9327871,169.74,169.71,0.04365846]
[1740171681562,0.0371871,169.74,169.71,0.04365846]
[1740171682255,0.0371871,169.74,169.73,5.8957]
[1740171682656,10.26442411,169.81,169.71,24.17569425]
[1740171682862,1.00138094,169.8,169.79,5.8936]
[1740171683062,1.8006,169.82,169.79,5.8936]
[1740171683260,1.00131096,169.81,169.79,5.8936]
[1740171683554,5.8919,169.84,169.8,5.8932]
[1740171683762,1.00120568,169.83,169.78,0.03848055]
[1740171683956,12.07962411,169.85,169.8,5.8932]
[1740171684158,1.00115402,169.84,169.78,0.03848055]
[1740171684660,210.38767577,169.86,169.78,0.03848055]
[1740171684862,1.00105483,169.85,169.78,0.03848055]
[1740171685465,6.89285483,169.85,169.78,0.03848055]
[1740171685669,1.00105483,169.84,169.78,0.03848055]
[1740171686166,5.8919,169.84,169.78,0.03848055]
[1740171686356,5.8919,169.84,169.79,5.8935]
[1740171686560,5.8919,169.84,169.78,0.03848055]
[1740171686561,5.8916,169.85,169.78,0.03848055]
[1740171686760,1.00111065,169.84,169.75,24.13203579]
[1740171686965,1.00111065,169.83,169.8,0.04170091]
[1740171687167,31.96544324,169.89,169.8,0.04170091]
[1740171687368,1.00114857,169.88,169.81,5.8928]
[1740171687568,1.00114857,169.88,169.8,0.04170091]
[1740171687962,1.00106337,169.87,169.8,0.04170091]
[1740171688163,1.00106337,169.88,169.8,0.04170091]
[1740171688458,1.00106337,169.87,169.8,0.04170091]
[1740171688768,1.00106337,169.86,169.74,5.8951]
[1740171688963,24.13203579,169.84,169.69,60.96264823]
[1740171689162,24.13203579,169.84,169.69,59.16014823]
[1740171689163,2.71776337,169.83,169.69,59.16014823]
[1740171689361,1.00106337,169.82,169.69,59.16014823]
[1740171689568,1.00166679,169.81,169.69,59.16014823]
[1740171689863,1.00166679,169.8,169.69,59.16014823]
[1740171690067,0.04134749,169.77,169.73,0.04446779]
[1740171691465,0.04134749,169.77,169.73,5.93996779]
[1740171691764,1.042965,169.77,169.73,0.04446779]
[1740171691969,0.04134749,169.77,169.73,0.04446779]
[1740171692466,0.04134749,169.77,169.73,5.94006779]
[1740171692970,1.04294347,169.77,169.73,5.94006779]
[1740171693361,1.04294347,169.77,169.74,5.8952]
[1740171693571,1.04294347,169.77,169.73,0.04446779]
[1740171694264,0.04134749,169.77,169.73,0.04446779]
[1740171694471,5.93564749,169.77,169.73,0.04446779]
[1740171694769,1.00162219,169.76,169.73,0.04446779]
[1740171694971,6.89662219,169.75,169.73,0.04446779]
[1740171695172,0.04134749,169.77,169.73,0.04446779]
[1740171696474,5.8952,169.75,169.73,0.04446779]
[1740171696677,0.04134749,169.77,169.73,0.04446779]
[1740171697475,5.8953,169.75,169.73,0.04446779]
[1740171697671,0.04134749,169.77,169.73,0.04446779]
[1740171699465,0.04134749,169.77,169.73,8.24446779]
[1740171700365,5.8953,169.74,169.73,8.24446779]
[1740171700568,6.89700989,169.74,169.73,8.24446779]
[1740171700872,5.8966,169.71,169.66,5.8978]
[1740171701075,3.5902,169.73,169.61,1.7704]
[1740171701373,1.00186296,169.72,169.61,1.7704]
[1740171701669,1.00186296,169.72,169.64,5.8987]
[1740171701872,0.03896103,169.68,169.65,0.03744419]
[1740171702479,0.03896103,169.68,169.67,5.8978]
[1740171702773,10.26562181,169.75,169.67,24.13203579]
[1740171702974,1.00176471,169.74,169.67,24.13203579]
[1740171703174,6.89666471,169.76,169.72,5.8959]
[1740171703374,1.00176036,169.75,169.72,5.8959]
[1740171703573,5.8949,169.76,169.67,24.13203579]
[1740171703574,8.54,169.79,169.67,24.13203579]
[1740171703769,1.00164066,169.78,169.67,24.13203579]
[1740171703973,1.00164066,169.78,169.71,0.03772919]
[1740171703974,0.03882801,169.75,169.71,0.03772919]
[1740171704570,5.8954,169.74,169.71,0.03772919]
[1740171704770,0.03882801,169.75,169.71,0.03772919]
[1740171705177,0.03882801,169.75,169.72,5.8957]
[1740171705478,1.04056965,169.75,169.72,5.8957]
[1740171706171,5.93382801,169.75,169.71,0.03772919]
[1740171706382,0.03882801,169.75,169.71,0.03772919]
[1740171707673,194.03882801,169.75,169.61,1.822]
[1740171707877,36.20382707,169.74,169.62,5.8994]
[1740171708079,1.00186315,169.73,169.62,5.8994]
[1740171708274,2.81636315,169.73,169.62,5.8994]
[1740171708474,1.00186315,169.72,169.62,5.8994]
[1740171708775,0.04001143,169.69,169.66,0.03756899]
[1740171709173,1.04225066,169.69,169.66,0.03756899]
[1740171709480,0.04001143,169.69,169.66,0.03756899]
[1740171710774,0.04001143,169.69,169.68,5.8974]
[1740171711169,0.04001143,169.69,169.66,0.03756899]
[1740171711375,0.04001143,169.69,169.68,5.8974]
[1740171712280,0.04001143,169.69,169.67,5.8977]
[1740171712880,0.04001143,169.69,169.66,5.93556899]
[1740171713681,0.04001143,169.69,169.66,0.03756899]
[1740171714280,0.04001143,169.69,169.68,5.8974]
[1740171717683,0.04001143,169.69,169.67,5.8977]
[1740171717885,0.04001143,169.69,169.66,0.03756899]
[1740171718674,0.04001143,169.69,169.67,5.8978]
[1740171718883,0.04001143,169.69,169.66,0.03756899]
[1740171719981,0.04001143,169.69,169.68,5.8974]
[1740171720481,1.00182357,169.73,169.66,0.03756899]
[1740171720681,1.8195,169.77,169.6,24.13203579]
[1740171720986,1.00168571,169.76,169.64,24.13203579]
[1740171721186,1.00168571,169.75,169.65,3.5713]
[1740171721381,19.74791094,169.8,169.65,3.5713]
[1740171721581,19.74791094,169.8,169.68,0.04509525]
[1740171721582,9.26e-05,169.72,169.68,0.04509525]
[1740171721887,10.24969038,169.8,169.68,24.13203579]